[Event "Late-Titled-Tuesday-Blitz-February-13-2024"]
[Site "Chess.com"]
[Date "2024.02.13"]
[Round "6"]
[White "OK97"]
[Black "Goryachkina"]
[Result "1/2-1/2"]
[WhiteElo "2844"]
[BlackElo "2701"]
[TimeControl "180+1"]
[EndTime "15:08:29 PST"]
[Termination "Game drawn by repetition"]

1. e4 {[%clk 0:03:00.9]} 1... c5 {[%clk 0:02:59.8]} 2. Nc3 {[%clk 0:02:59.7]}
2... e6 {[%clk 0:02:59.4]} 3. Nge2 {[%clk 0:02:59.1]} 3... Nc6 {[%clk
0:02:57.7]} 4. g3 {[%clk 0:02:53.9]} 4... d5 {[%clk 0:02:44.3]} 5. exd5 {[%clk
0:02:53.8]} 5... exd5 {[%clk 0:02:44.5]} 6. d4 {[%clk 0:02:54.5]} 6... Bg4
{[%clk 0:02:33.9]} 7. Bg2 {[%clk 0:02:54.5]} 7... cxd4 {[%clk 0:02:14.1]} 8.
Nxd5 {[%clk 0:02:45.1]} 8... Nge7 {[%clk 0:02:12.7]} 9. Ndf4 {[%clk 0:02:33.3]}
9... Ng6 {[%clk 0:02:08.5]} 10. h3 {[%clk 0:02:14.9]} 10... Nxf4 {[%clk
0:01:44.8]} 11. Bxf4 {[%clk 0:02:11.5]} 11... Bb4+ {[%clk 0:01:43.7]} 12. Bd2
{[%clk 0:02:04.2]} 12... Bxd2+ {[%clk 0:01:18.6]} 13. Qxd2 {[%clk 0:02:05.1]}
13... Be6 {[%clk 0:01:18.6]} 14. Bxc6+ {[%clk 0:01:50.2]} 14... bxc6 {[%clk
0:01:18.6]} 15. Qxd4 {[%clk 0:01:50.4]} 15... Qa5+ {[%clk 0:01:00]} 16. b4
{[%clk 0:01:27.6]} 16... Qg5 {[%clk 0:00:35.9]} 17. Nf4 {[%clk 0:01:07.2]} 17...
O-O {[%clk 0:00:31.7]} 18. Nxe6 {[%clk 0:01:03.2]} 18... fxe6 {[%clk 0:00:22.4]}
19. O-O {[%clk 0:01:02.9]} 19... a5 {[%clk 0:00:19.9]} 20. a3 {[%clk 0:00:48.8]}
20... Qf5 {[%clk 0:00:19.9]} 21. c3 {[%clk 0:00:19.4]} 21... Qxh3 {[%clk
0:00:17.3]} 22. Rae1 {[%clk 0:00:18]} 22... axb4 {[%clk 0:00:13.9]} 23. axb4
{[%clk 0:00:18.9]} 23... Rf6 {[%clk 0:00:07.7]} 24. Qe4 {[%clk 0:00:18.9]} 24...
Raf8 {[%clk 0:00:07.1]} 25. Qxc6 {[%clk 0:00:15.6]} 25... h5 {[%clk 0:00:04.5]}
26. Qg2 {[%clk 0:00:15.7]} 26... Qf5 {[%clk 0:00:04.5]} 27. Qe4 {[%clk
0:00:15.1]} 27... Qh3 {[%clk 0:00:04.3]} 28. Re3 {[%clk 0:00:11.8]} 28... R8f7
{[%clk 0:00:02.1]} 29. Qg2 {[%clk 0:00:12]} 29... Qf5 {[%clk 0:00:02]} 30. Qa8+
{[%clk 0:00:12.2]} 30... Kh7 {[%clk 0:00:01.8]} 31. Qe4 {[%clk 0:00:12.3]} 31...
Rc7 {[%clk 0:00:02]} 32. Qxf5+ {[%clk 0:00:11.1]} 32... exf5 {[%clk 0:00:02.4]}
33. Rb1 {[%clk 0:00:09.8]} 33... f4 {[%clk 0:00:01.7]} 34. gxf4 {[%clk
0:00:08.8]} 34... Rxf4 {[%clk 0:00:02.2]} 35. b5 {[%clk 0:00:09.5]} 35... Rfc4
{[%clk 0:00:02.5]} 36. b6 {[%clk 0:00:08.9]} 36... Rb7 {[%clk 0:00:03.1]} 37.
Rb5 {[%clk 0:00:06.2]} 37... h4 {[%clk 0:00:02.5]} 38. Kg2 {[%clk 0:00:06.2]}
38... Rc6 {[%clk 0:00:02.5]} 39. Re4 {[%clk 0:00:04.6]} 39... Rcxb6 {[%clk
0:00:02.6]} 40. Rxh4+ {[%clk 0:00:04.6]} 40... Kg8 {[%clk 0:00:03.1]} 41. Rxb6
{[%clk 0:00:04.6]} 41... Rxb6 {[%clk 0:00:04]} 42. Rc4 {[%clk 0:00:04.8]} 42...
Rb2 {[%clk 0:00:04.2]} 43. Rc8+ {[%clk 0:00:05.3]} 43... Kf7 {[%clk 0:00:04.6]}
44. c4 {[%clk 0:00:06.2]} 44... Rc2 {[%clk 0:00:03.8]} 45. Kf3 {[%clk
0:00:06.8]} 45... Kf6 {[%clk 0:00:02.8]} 46. Ke3 {[%clk 0:00:06.8]} 46... Ke5
{[%clk 0:00:02.8]} 47. f3 {[%clk 0:00:07]} 47... Rc3+ {[%clk 0:00:02.8]} 48. Kf2
{[%clk 0:00:04.3]} 48... Kd4 {[%clk 0:00:03.1]} 49. Rc7 {[%clk 0:00:04]} 49...
Rxc4 {[%clk 0:00:03.2]} 50. Rxg7 {[%clk 0:00:04.1]} 50... Ke5 {[%clk 0:00:03.7]}
51. Rf7 {[%clk 0:00:04]} 51... Ke6 {[%clk 0:00:04.1]} 52. Rf8 {[%clk 0:00:04.3]}
52... Ke7 {[%clk 0:00:04.6]} 53. Rh8 {[%clk 0:00:03.9]} 53... Kf6 {[%clk
0:00:05]} 54. Kg3 {[%clk 0:00:04.4]} 54... Ra4 {[%clk 0:00:04.7]} 55. Rf8+
{[%clk 0:00:04.6]} 55... Ke7 {[%clk 0:00:04.6]} 56. Rb8 {[%clk 0:00:05.5]} 56...
Kf6 {[%clk 0:00:04.4]} 57. Rb7 {[%clk 0:00:06]} 57... Kg6 {[%clk 0:00:04.1]} 58.
Rb6+ {[%clk 0:00:06.3]} 58... Kf7 {[%clk 0:00:04.2]} 59. f4 {[%clk 0:00:06.7]}
59... Ra5 {[%clk 0:00:04.3]} 60. Kg4 {[%clk 0:00:07.1]} 60... Rc5 {[%clk
0:00:04.7]} 61. Ra6 {[%clk 0:00:07.4]} 61... Rb5 {[%clk 0:00:05.1]} 62. Rc6
{[%clk 0:00:07.6]} 62... Ra5 {[%clk 0:00:05.4]} 63. Rd6 {[%clk 0:00:08]} 63...
Rb5 {[%clk 0:00:05.8]} 64. f5 {[%clk 0:00:08.1]} 64... Rb1 {[%clk 0:00:05.6]}
65. Ra6 {[%clk 0:00:05]} 65... Rg1+ {[%clk 0:00:05.8]} 66. Kf4 {[%clk
0:00:05.5]} 66... Rf1+ {[%clk 0:00:06.3]} 67. Ke5 {[%clk 0:00:05.9]} 67... Re1+
{[%clk 0:00:06.8]} 68. Kf4 {[%clk 0:00:06.3]} 68... Rf1+ {[%clk 0:00:07.2]} 69.
Ke5 {[%clk 0:00:06.7]} 69... Re1+ {[%clk 0:00:07.8]} 70. Kf4 {[%clk 0:00:07.1]}
70... Rf1+ {[%clk 0:00:08.3]} 1/2-1/2

[Event "Late-Titled-Tuesday-Blitz-February-13-2024"]
[Site "Chess.com"]
[Date "2024.02.13"]
[Round "6"]
[White "ahmedkandiliii"]
[Black "Flawless_Fighter"]
[Result "0-1"]
[WhiteElo "2549"]
[BlackElo "2744"]
[TimeControl "180+1"]
[EndTime "15:08:38 PST"]
[Termination "Flawless_Fighter won by resignation"]

1. e4 {[%clk 0:02:53.1]} 1... c5 {[%clk 0:02:59.7]} 2. Nf3 {[%clk 0:02:53.3]}
2... d6 {[%clk 0:02:59.7]} 3. Bb5+ {[%clk 0:02:52.9]} 3... Bd7 {[%clk
0:02:59.2]} 4. Bd3 {[%clk 0:02:53.5]} 4... Nc6 {[%clk 0:02:58.5]} 5. c3 {[%clk
0:02:52]} 5... e6 {[%clk 0:02:49.6]} 6. O-O {[%clk 0:02:52.1]} 6... Nf6 {[%clk
0:02:49.1]} 7. Bc2 {[%clk 0:02:51.5]} 7... Rc8 {[%clk 0:02:46.7]} 8. d4 {[%clk
0:02:50.8]} 8... cxd4 {[%clk 0:02:46.2]} 9. cxd4 {[%clk 0:02:51.7]} 9... Nb4
{[%clk 0:02:46.5]} 10. Nc3 {[%clk 0:02:35.3]} 10... Nxc2 {[%clk 0:02:38.5]} 11.
Qxc2 {[%clk 0:02:36.2]} 11... d5 {[%clk 0:02:36.1]} 12. Bg5 {[%clk 0:02:08.3]}
12... dxe4 {[%clk 0:02:29.8]} 13. Bxf6 {[%clk 0:02:07.9]} 13... Qxf6 {[%clk
0:02:27.8]} 14. Qxe4 {[%clk 0:02:08.5]} 14... b6 {[%clk 0:02:02.3]} 15. Ne5
{[%clk 0:02:02.7]} 15... Bd6 {[%clk 0:01:42]} 16. Nxd7 {[%clk 0:02:02.1]} 16...
Kxd7 {[%clk 0:01:42.1]} 17. d5 {[%clk 0:02:02.1]} 17... Qf4 {[%clk 0:01:20.5]}
18. dxe6+ {[%clk 0:01:47.2]} 18... fxe6 {[%clk 0:01:21.4]} 19. Qxf4 {[%clk
0:01:42.9]} 19... Bxf4 {[%clk 0:01:22.3]} 20. Rad1+ {[%clk 0:01:43.3]} 20... Ke7
{[%clk 0:01:18.7]} 21. Rfe1 {[%clk 0:01:43.4]} 21... Kf6 {[%clk 0:01:11]} 22. g3
{[%clk 0:01:18]} 22... Bb8 {[%clk 0:01:05.2]} 23. Rd7 {[%clk 0:01:15.7]} 23...
Rhd8 {[%clk 0:00:51.6]} 24. Ne4+ {[%clk 0:01:06.2]} 24... Kg6 {[%clk 0:00:51.7]}
25. Red1 {[%clk 0:01:01.4]} 25... Rxd7 {[%clk 0:00:51.4]} 26. Rxd7 {[%clk
0:01:02.3]} 26... Be5 {[%clk 0:00:48.7]} 27. b3 {[%clk 0:00:57]} 27... a5 {[%clk
0:00:39.2]} 28. Kg2 {[%clk 0:00:54.3]} 28... Rc2 {[%clk 0:00:37.1]} 29. a4
{[%clk 0:00:41.3]} 29... Rb2 {[%clk 0:00:36.5]} 30. Nd2 {[%clk 0:00:41.2]} 30...
Bc3 {[%clk 0:00:33.1]} 31. Nc4 {[%clk 0:00:40.1]} 31... Rxb3 {[%clk 0:00:32.5]}
32. Rd6 {[%clk 0:00:38.6]} 32... Rb4 {[%clk 0:00:29.2]} 33. Nxb6 {[%clk
0:00:35.6]} 33... Kf7 {[%clk 0:00:22.3]} 34. Rc6 {[%clk 0:00:30.4]} 34... Bd4
{[%clk 0:00:20.6]} 35. Nc4 {[%clk 0:00:29.7]} 35... Rxa4 {[%clk 0:00:19.3]} 36.
Nd6+ {[%clk 0:00:23]} 36... Ke7 {[%clk 0:00:18.4]} 37. Ne4 {[%clk 0:00:21.4]}
37... Ra2 {[%clk 0:00:13.7]} 38. Rc7+ {[%clk 0:00:20.1]} 38... Kd8 {[%clk
0:00:14.4]} 39. Rb7 {[%clk 0:00:17.7]} 39... a4 {[%clk 0:00:13.8]} 40. Rb4
{[%clk 0:00:15.3]} 40... e5 {[%clk 0:00:13.8]} 41. Rb5 {[%clk 0:00:14.8]} 41...
a3 {[%clk 0:00:13.7]} 42. Ra5 {[%clk 0:00:15]} 42... Ra1 {[%clk 0:00:11.8]} 43.
Kf3 {[%clk 0:00:14.2]} 43... a2 {[%clk 0:00:11.8]} 44. Ra6 {[%clk 0:00:14.7]}
44... Kc7 {[%clk 0:00:07.7]} 45. Ra8 {[%clk 0:00:13.9]} 45... Kb7 {[%clk
0:00:07.9]} 46. Ra3 {[%clk 0:00:13.1]} 46... Kb6 {[%clk 0:00:07.2]} 47. Nd2
{[%clk 0:00:13.6]} 47... Rf1 {[%clk 0:00:03.1]} 48. Rxa2 {[%clk 0:00:11.4]}
48... Rxf2+ {[%clk 0:00:03.4]} 49. Ke4 {[%clk 0:00:11.9]} 49... Kb5 {[%clk
0:00:04.3]} 50. Rc2 {[%clk 0:00:08.5]} 50... g6 {[%clk 0:00:04]} 51. Kd3 {[%clk
0:00:07.7]} 51... Rxh2 {[%clk 0:00:03.8]} 52. g4 {[%clk 0:00:06.7]} 52... Rg2
{[%clk 0:00:04]} 53. g5 {[%clk 0:00:05.3]} 53... Rxg5 {[%clk 0:00:03.6]} 54. Nf3
{[%clk 0:00:06]} 54... Rg3 {[%clk 0:00:03.6]} 55. Ke4 {[%clk 0:00:06.7]} 55...
h5 {[%clk 0:00:03.3]} 56. Rc1 {[%clk 0:00:05]} 56... Rg4+ {[%clk 0:00:03.7]} 57.
Kd5 {[%clk 0:00:04.5]} 57... h4 {[%clk 0:00:03]} 58. Rb1+ {[%clk 0:00:05]} 58...
Ka4 {[%clk 0:00:02.8]} 59. Kc4 {[%clk 0:00:05.3]} 59... Ka3 {[%clk 0:00:03.1]}
60. Nd2 {[%clk 0:00:04.3]} 60... Be3+ {[%clk 0:00:01.6]} 61. Kd3 {[%clk
0:00:03.5]} 61... Bxd2 {[%clk 0:00:01.8]} 62. Kxd2 {[%clk 0:00:04.4]} 62... h3
{[%clk 0:00:02.5]} 63. Kc3 {[%clk 0:00:05.2]} 63... Rg3+ {[%clk 0:00:03]} 64.
Kc2 {[%clk 0:00:03]} 64... h2 {[%clk 0:00:03.5]} 65. Rh1 {[%clk 0:00:03.2]}
65... Rg2+ {[%clk 0:00:03.5]} 66. Kd3 {[%clk 0:00:04.1]} 66... Rg1 {[%clk
0:00:03.1]} 67. Ke3 {[%clk 0:00:05]} 67... Rxh1 {[%clk 0:00:03.3]} 0-1

[Event "Late-Titled-Tuesday-Blitz-February-13-2024"]
[Site "Chess.com"]
[Date "2024.02.13"]
[Round "6"]
[White "DeGrootteZ"]
[Black "Njal28"]
[Result "1-0"]
[WhiteElo "2842"]
[BlackElo "2984"]
[TimeControl "180+1"]
[EndTime "15:08:39 PST"]
[Termination "DeGrootteZ won by checkmate"]

1. c4 {[%clk 0:03:00.9]} 1... g6 {[%clk 0:02:59.8]} 2. Nc3 {[%clk 0:03:00.2]}
2... Bg7 {[%clk 0:03:00.7]} 3. d4 {[%clk 0:03:00.6]} 3... c5 {[%clk 0:03:01.4]}
4. e3 {[%clk 0:02:58.7]} 4... Nf6 {[%clk 0:02:58.3]} 5. Nf3 {[%clk 0:02:54.6]}
5... O-O {[%clk 0:02:58.5]} 6. d5 {[%clk 0:02:52.6]} 6... d6 {[%clk 0:02:58]} 7.
h3 {[%clk 0:02:51.1]} 7... e6 {[%clk 0:02:58]} 8. Bd3 {[%clk 0:02:51.7]} 8...
Re8 {[%clk 0:02:52.3]} 9. O-O {[%clk 0:02:50.9]} 9... a6 {[%clk 0:02:52.7]} 10.
a4 {[%clk 0:02:48.3]} 10... Nbd7 {[%clk 0:02:48.6]} 11. e4 {[%clk 0:02:44]}
11... exd5 {[%clk 0:02:44.7]} 12. exd5 {[%clk 0:02:44.1]} 12... Ne5 {[%clk
0:02:40.3]} 13. Nxe5 {[%clk 0:02:43.6]} 13... Rxe5 {[%clk 0:02:41.2]} 14. Bf4
{[%clk 0:02:42.9]} 14... Re8 {[%clk 0:02:40.6]} 15. Qd2 {[%clk 0:02:35.3]} 15...
Nh5 {[%clk 0:02:31.3]} 16. Bh2 {[%clk 0:02:29.9]} 16... Qh4 {[%clk 0:02:03.9]}
17. Bxd6 {[%clk 0:02:20.8]} 17... Bxh3 {[%clk 0:02:01.3]} 18. gxh3 {[%clk
0:02:19.7]} 18... Qxh3 {[%clk 0:02:02.2]} 19. Rfe1 {[%clk 0:02:17.1]} 19... Bd4
{[%clk 0:01:55.3]} 20. Bf1 {[%clk 0:02:11.8]} 20... Qh4 {[%clk 0:01:36.8]} 21.
Bg2 {[%clk 0:02:01.1]} 21... Rad8 {[%clk 0:01:37]} 22. Bc7 {[%clk 0:01:55.3]}
22... Rc8 {[%clk 0:01:36.9]} 23. Bh2 {[%clk 0:01:50.4]} 23... Nf6 {[%clk
0:01:30.4]} 24. Qf4 {[%clk 0:01:09.2]} 24... Qh5 {[%clk 0:01:29.8]} 25. Bg3
{[%clk 0:00:51]} 25... Kg7 {[%clk 0:00:43]} 26. Qh4 {[%clk 0:00:44.9]} 26... Qf5
{[%clk 0:00:25.2]} 27. Bh3 {[%clk 0:00:43.9]} 27... Qf3 {[%clk 0:00:25.5]} 28.
Bxc8 {[%clk 0:00:37.7]} 28... Rxc8 {[%clk 0:00:26.4]} 29. Qf4 {[%clk 0:00:27.2]}
29... Bxf2+ {[%clk 0:00:26.1]} 30. Kf1 {[%clk 0:00:18.6]} 30... Qxg3 {[%clk
0:00:14.9]} 31. Qxg3 {[%clk 0:00:18.2]} 31... Bxg3 {[%clk 0:00:15]} 32. Re7
{[%clk 0:00:18.3]} 32... Rc7 {[%clk 0:00:08.9]} 33. Rxc7 {[%clk 0:00:18.4]}
33... Bxc7 {[%clk 0:00:08.6]} 34. Re1 {[%clk 0:00:18]} 34... Kf8 {[%clk
0:00:09]} 35. Ne4 {[%clk 0:00:16.7]} 35... Nxe4 {[%clk 0:00:05.3]} 36. Rxe4
{[%clk 0:00:17.6]} 36... h5 {[%clk 0:00:03.2]} 37. Re3 {[%clk 0:00:15.7]} 37...
h4 {[%clk 0:00:02.5]} 38. Kg2 {[%clk 0:00:15]} 38... g5 {[%clk 0:00:02.1]} 39.
Kh3 {[%clk 0:00:14.1]} 39... f5 {[%clk 0:00:02.8]} 40. Re6 {[%clk 0:00:12.6]}
40... Bd8 {[%clk 0:00:03.1]} 41. Re5 {[%clk 0:00:11.2]} 41... g4+ {[%clk
0:00:03.8]} 42. Kg2 {[%clk 0:00:11.1]} 42... h3+ {[%clk 0:00:04.4]} 43. Kf2
{[%clk 0:00:11.1]} 43... g3+ {[%clk 0:00:03.6]} 44. Kg1 {[%clk 0:00:09.4]} 44...
f4 {[%clk 0:00:02.2]} 45. Rf5+ {[%clk 0:00:09.2]} 45... Ke8 {[%clk 0:00:02.7]}
46. Rxf4 {[%clk 0:00:09.7]} 46... Bg5 {[%clk 0:00:02.1]} 47. Rf3 {[%clk
0:00:09.7]} 47... Bh4 {[%clk 0:00:01.7]} 48. Rf5 {[%clk 0:00:09]} 48... Kd7
{[%clk 0:00:02]} 49. Rh5 {[%clk 0:00:09.4]} 49... Bf6 {[%clk 0:00:02.5]} 50.
Rxh3 {[%clk 0:00:09.8]} 50... Bxb2 {[%clk 0:00:03.3]} 51. Rxg3 {[%clk
0:00:09.8]} 51... Kd6 {[%clk 0:00:04.1]} 52. Rb3 {[%clk 0:00:10.2]} 52... Bd4+
{[%clk 0:00:04]} 53. Kg2 {[%clk 0:00:10.3]} 53... Kc7 {[%clk 0:00:04.9]} 54. Kf3
{[%clk 0:00:10.8]} 54... Be5 {[%clk 0:00:05.4]} 55. Ke4 {[%clk 0:00:11.2]} 55...
Bh2 {[%clk 0:00:05.7]} 56. Rh3 {[%clk 0:00:10.9]} 56... Bd6 {[%clk 0:00:06]} 57.
a5 {[%clk 0:00:10.8]} 57... b5 {[%clk 0:00:05.6]} 58. Rh7+ {[%clk 0:00:09.8]}
58... Kb8 {[%clk 0:00:04.9]} 59. Rh6 {[%clk 0:00:08.1]} 59... Kc7 {[%clk
0:00:05]} 60. Rh7+ {[%clk 0:00:08.7]} 60... Kb8 {[%clk 0:00:05.4]} 61. cxb5
{[%clk 0:00:08.9]} 61... axb5 {[%clk 0:00:05.8]} 62. a6 {[%clk 0:00:09.4]} 62...
c4 {[%clk 0:00:05.1]} 63. Rb7+ {[%clk 0:00:09.5]} 63... Ka8 {[%clk 0:00:04.7]}
64. Rxb5 {[%clk 0:00:09.7]} 64... Ka7 {[%clk 0:00:05.5]} 65. Ra5 {[%clk
0:00:07.7]} 65... c3 {[%clk 0:00:03.3]} 66. Ra2 {[%clk 0:00:07.4]} 66... Be7
{[%clk 0:00:01.4]} 67. Kd3 {[%clk 0:00:07]} 67... Bf6 {[%clk 0:00:01.7]} 68. d6
{[%clk 0:00:06.8]} 68... Bg7 {[%clk 0:00:01.4]} 69. d7 {[%clk 0:00:06.9]} 69...
Bf6 {[%clk 0:00:02.3]} 70. Ra4 {[%clk 0:00:06.5]} 70... Be7 {[%clk 0:00:01.5]}
71. Kxc3 {[%clk 0:00:06.4]} 71... Bd8 {[%clk 0:00:02.3]} 72. Kc4 {[%clk
0:00:07]} 72... Bc7 {[%clk 0:00:02.8]} 73. Kd5 {[%clk 0:00:07.5]} 73... Bd8
{[%clk 0:00:03.6]} 74. Ke6 {[%clk 0:00:07.5]} 74... Bb6 {[%clk 0:00:04.5]} 75.
Kf7 {[%clk 0:00:08]} 75... Bc7 {[%clk 0:00:05.2]} 76. Ke8 {[%clk 0:00:08.4]}
76... Ka8 {[%clk 0:00:04.8]} 77. d8=Q+ {[%clk 0:00:08.2]} 77... Bxd8 {[%clk
0:00:05.6]} 78. Kxd8 {[%clk 0:00:08.9]} 78... Ka7 {[%clk 0:00:06.3]} 79. Kd7
{[%clk 0:00:09.5]} 79... Kb6 {[%clk 0:00:07]} 80. a7 {[%clk 0:00:09.2]} 80...
Kb5 {[%clk 0:00:07.4]} 81. a8=Q {[%clk 0:00:08.2]} 81... Kc5 {[%clk 0:00:05.2]}
82. Qc6# {[%clk 0:00:07.8]} 1-0

[Event "Late-Titled-Tuesday-Blitz-February-13-2024"]
[Site "Chess.com"]
[Date "2024.02.13"]
[Round "6"]
[White "Baronessa08"]
[Black "CFalcons8"]
[Result "1/2-1/2"]
[WhiteElo "2541"]
[BlackElo "2430"]
[TimeControl "180+1"]
[EndTime "15:08:47 PST"]
[Termination "Game drawn by agreement"]

1. Nf3 {[%clk 0:03:00.9]} 1... Nf6 {[%clk 0:02:59.1]} 2. d4 {[%clk 0:02:58.9]}
2... e6 {[%clk 0:02:59]} 3. c4 {[%clk 0:02:58.7]} 3... d5 {[%clk 0:02:59.1]} 4.
g3 {[%clk 0:02:58.7]} 4... Bb4+ {[%clk 0:02:57.8]} 5. Bd2 {[%clk 0:02:58.6]}
5... Be7 {[%clk 0:02:58.2]} 6. Bg2 {[%clk 0:02:58.4]} 6... O-O {[%clk
0:02:56.7]} 7. O-O {[%clk 0:02:58.2]} 7... c6 {[%clk 0:02:54.7]} 8. Qc2 {[%clk
0:02:55.9]} 8... b6 {[%clk 0:02:54.6]} 9. Bf4 {[%clk 0:02:48.7]} 9... Bb7 {[%clk
0:02:53.7]} 10. Rc1 {[%clk 0:02:46.1]} 10... Nbd7 {[%clk 0:02:52.8]} 11. Ne5
{[%clk 0:02:26]} 11... Nxe5 {[%clk 0:02:52.3]} 12. Bxe5 {[%clk 0:02:23.3]} 12...
Bd6 {[%clk 0:02:45.1]} 13. Bxd6 {[%clk 0:02:13]} 13... Qxd6 {[%clk 0:02:46]} 14.
e3 {[%clk 0:02:13.4]} 14... Rac8 {[%clk 0:02:45.3]} 15. c5 {[%clk 0:02:11.8]}
15... Qe7 {[%clk 0:02:38.7]} 16. Nd2 {[%clk 0:02:10.4]} 16... e5 {[%clk
0:02:36.6]} 17. b4 {[%clk 0:02:05.8]} 17... Nd7 {[%clk 0:02:23.6]} 18. a4 {[%clk
0:02:02.2]} 18... f5 {[%clk 0:02:12.9]} 19. Nb3 {[%clk 0:01:51.7]} 19... Rc7
{[%clk 0:02:07.1]} 20. cxb6 {[%clk 0:01:46.8]} 20... axb6 {[%clk 0:02:05.6]} 21.
a5 {[%clk 0:01:46.5]} 21... Qxb4 {[%clk 0:02:04.5]} 22. a6 {[%clk 0:01:31.8]}
22... Ba8 {[%clk 0:02:01.3]} 23. dxe5 {[%clk 0:01:31.1]} 23... Nxe5 {[%clk
0:01:58.4]} 24. Nd4 {[%clk 0:01:31.1]} 24... Ra7 {[%clk 0:01:38]} 25. Nxf5
{[%clk 0:01:25.1]} 25... Raf7 {[%clk 0:01:36.4]} 26. e4 {[%clk 0:01:04.3]} 26...
c5 {[%clk 0:01:20.3]} 27. f4 {[%clk 0:00:30.4]} 27... dxe4 {[%clk 0:00:59.6]}
28. Rab1 {[%clk 0:00:29.5]} 28... Qa3 {[%clk 0:00:40.2]} 29. Nd6 {[%clk
0:00:29.4]} 29... Qe3+ {[%clk 0:00:39.9]} 30. Qf2 {[%clk 0:00:10.9]} 30... Qxf2+
{[%clk 0:00:37.1]} 31. Kxf2 {[%clk 0:00:11.8]} 31... Rd7 {[%clk 0:00:35.2]} 32.
Nc4 {[%clk 0:00:07.4]} 32... Nd3+ {[%clk 0:00:35.1]} 33. Ke2 {[%clk 0:00:04.8]}
33... Nxc1+ {[%clk 0:00:35.2]} 34. Rxc1 {[%clk 0:00:05.7]} 34... b5 {[%clk
0:00:25.2]} 35. Nb6 {[%clk 0:00:05.2]} 35... Rd6 {[%clk 0:00:23.8]} 36. Nxa8
{[%clk 0:00:04.2]} 36... Rxa8 {[%clk 0:00:24.7]} 37. Bxe4 {[%clk 0:00:04.4]}
37... Raxa6 {[%clk 0:00:24.8]} 38. Rxc5 {[%clk 0:00:04.5]} 38... Ra2+ {[%clk
0:00:24.6]} 39. Kf3 {[%clk 0:00:04.5]} 39... Rxh2 {[%clk 0:00:24]} 40. Bd5+
{[%clk 0:00:04]} 40... Kf8 {[%clk 0:00:22.4]} 41. Rxb5 {[%clk 0:00:04.5]} 41...
Ke7 {[%clk 0:00:22.5]} 42. Be4 {[%clk 0:00:04.3]} 42... g6 {[%clk 0:00:19.5]}
43. Rb7+ {[%clk 0:00:04.3]} 43... Kf6 {[%clk 0:00:19.5]} 44. Rc7 {[%clk
0:00:03.8]} 44... Ra6 {[%clk 0:00:18.4]} 45. Bd3 {[%clk 0:00:02.5]} 45... Rb6
{[%clk 0:00:16]} 46. Rd7 {[%clk 0:00:02.9]} 46... Rhb2 {[%clk 0:00:13.4]} 47.
Ke3 {[%clk 0:00:02.8]} 47... Re6+ {[%clk 0:00:12.6]} 48. Kf3 {[%clk 0:00:02.9]}
48... Rb3 {[%clk 0:00:10.9]} 49. g4 {[%clk 0:00:03.3]} 49... Re7 {[%clk
0:00:11.1]} 50. Rd6+ {[%clk 0:00:03.2]} 50... Kg7 {[%clk 0:00:11.1]} 51. g5
{[%clk 0:00:03.7]} 51... Rc7 {[%clk 0:00:10.6]} 52. Kg4 {[%clk 0:00:03.9]} 52...
Rbc3 {[%clk 0:00:10.4]} 53. Be4 {[%clk 0:00:04.1]} 53... R3c4 {[%clk 0:00:09.8]}
54. Re6 {[%clk 0:00:04.1]} 54... Rd4 {[%clk 0:00:07.1]} 55. Re5 {[%clk
0:00:04.2]} 55... Rdd7 {[%clk 0:00:07.1]} 56. f5 {[%clk 0:00:04]} 56... gxf5+
{[%clk 0:00:06.2]} 57. Bxf5 {[%clk 0:00:04.3]} 57... Rd4+ {[%clk 0:00:06.3]} 58.
Be4 {[%clk 0:00:03.9]} 58... Rcc4 {[%clk 0:00:06.2]} 59. Kf4 {[%clk 0:00:04]}
59... Rc7 {[%clk 0:00:06.1]} 60. Re6 {[%clk 0:00:04.1]} 60... Rd1 {[%clk
0:00:06.1]} 61. Bf5 {[%clk 0:00:03.6]} 61... Rf1+ {[%clk 0:00:06.1]} 62. Kg4
{[%clk 0:00:03.8]} 62... Rc4+ {[%clk 0:00:06.3]} 63. Be4 {[%clk 0:00:04.3]}
63... Re1 {[%clk 0:00:05.8]} 64. Kf4 {[%clk 0:00:04.3]} 64... Rf1+ {[%clk
0:00:05.7]} 65. Kg4 {[%clk 0:00:04.4]} 65... Rf7 {[%clk 0:00:05.9]} 66. Re5
{[%clk 0:00:04.2]} 66... Kf8 {[%clk 0:00:05.8]} 67. Kh5 {[%clk 0:00:04.4]} 67...
Kg7 {[%clk 0:00:05.1]} 68. Bd5 {[%clk 0:00:04.6]} 68... Rcc7 {[%clk 0:00:03.9]}
69. Bxf7 {[%clk 0:00:04.4]} 69... Rxf7 {[%clk 0:00:04.8]} 70. Ra5 {[%clk
0:00:04.9]} 70... Re7 {[%clk 0:00:05.2]} 71. Rb5 {[%clk 0:00:04.7]} 1/2-1/2